bitfinex-derivatives/quotes_SOLF0:USTF0_20240823
["timestamp","ask_amount","ask_price","bid_price","bid_amount"]
[1724376820273,7.44,144.09,144.07,0.04669193]
[1724376821980,7.44,144.08,144.07,0.04669193]
[1724376825481,7.48943368,144.1,144.07,0.04669193]
[1724376825680,0.04943368,144.1,144.07,0.04669193]
[1724376825879,7.44,144.08,144.07,3.51639193]
[1724376826075,7.44,144.08,144.07,0.04669193]
[1724376827190,7.44,144.08,144.02,72.03855511]
[1724376828184,0.0467078,144.06,144.04,0.05248977]
[1724376835391,7.44,144.05,144.04,0.05248977]
[1724376839093,7.0,144.04,143.88,3.22195001]
[1724376839286,7.0,144.04,143.84,7.44]
[1724376839490,6.942,144.03,143.84,7.44]
[1724376839688,7.942,144.03,143.86,7.44]
[1724376839890,7.942,144.03,143.88,7.44]
[1724376839891,8.56477115,143.9,143.88,7.44]
[1724376840192,15.85088466,143.89,143.88,0.05040267]
[1724376840592,4.1659089,143.89,143.88,0.05040267]
[1724376840796,0.05306124,143.9,143.88,0.05040267]
[1724376841496,7.49306124,143.9,143.88,0.05040267]
[1724376842193,0.05306124,143.9,143.88,0.05040267]
[1724376850308,1.318,144.01,143.88,7.49040267]
[1724376850603,7.44,143.95,143.9,7.44]
[1724376851001,7.44,143.95,143.9,3.4737]
[1724376851197,1.318,144.01,143.9,7.44]
[1724376851399,7.44,143.96,143.9,7.44]
[1724376851600,7.44,143.96,143.94,0.04385352]
[1724376853099,7.44,143.95,143.94,0.04385352]
[1724376853596,10.9127,143.95,143.88,4.7891]
[1724376853795,7.44,143.92,143.88,1.3148]
[1724376854406,7.44,143.93,143.88,1.3148]
[1724376854606,0.04729955,143.92,143.89,0.05310983]
[1724376855302,0.04729955,143.92,143.89,3.52720983]
[1724376855701,0.04729955,143.92,143.89,10.96720983]
[1724376855896,3.4725,143.96,143.89,7.49310983]
[1724376856098,3.472,143.98,143.92,7.44]
[1724376856402,7.44,143.96,143.9,7.44]
[1724376856610,7.44,143.96,143.91,3.4735]
[1724376857101,0.04792599,143.95,143.92,0.05213912]
[1724376865814,0.04792599,143.95,143.92,3.52543912]
[1724376870207,0.04792599,143.95,143.92,0.05213912]
[1724376871214,7.48792599,143.95,143.92,0.05213912]
[1724376872608,10.96072599,143.95,143.92,0.05213912]
[1724376872912,0.04792599,143.95,143.92,0.05213912]
[1724376876114,0.04792599,143.95,143.92,3.52553912]
[1724376881022,0.04792599,143.95,143.93,3.4731]
[1724376884728,0.04792599,143.95,143.93,4.7459]
[1724376885624,0.04792599,143.95,143.94,3.4729]
[1724376885827,7.44,144.01,143.94,7.44]
[1724376886821,0.04768541,143.99,143.96,3.52264978]
[1724376888028,0.04768541,143.99,143.97,3.472]
[1724376888231,0.04768541,143.99,143.96,7.49034978]
[1724376889228,0.04768541,143.99,143.97,3.4721]
[1724376890028,0.04768541,143.99,143.98,3.472]
[1724376891530,0.04768541,143.99,143.97,3.4721]
[1724376895942,0.04768541,143.99,143.96,10.96264978]
[1724376896241,0.04768541,143.99,143.96,3.52264978]
[1724376896639,0.04768541,143.99,143.96,10.96264978]
[1724376897837,0.04768541,143.99,143.97,3.4721]
[1724376898344,0.04768541,143.99,143.97,10.9121]
[1724376898734,0.04768541,143.99,143.98,3.472]
[1724376899240,0.04768541,143.99,143.97,10.9121]
[1724376900735,0.04768541,143.99,143.97,3.4721]
[1724376901939,0.04768541,143.99,143.98,3.472]
[1724376902645,0.04768541,143.99,143.98,10.912]
[1724376907649,7.44,144.05,143.98,10.912]
[1724376907650,29.0597,144.08,143.98,7.44]
[1724376907952,7.44,144.07,144.0,7.44]
[1724376908153,10.9099,144.07,144.01,10.9111]
[1724376908654,0.05110941,144.05,144.03,0.04619695]
[1724376908954,0.05110941,144.05,144.03,7.48619695]
[1724376910339,0.05110941,144.05,144.03,10.95689695]
[1724376910547,0.05110941,144.05,144.03,0.04619695]
[1724376911251,0.05110941,144.05,144.03,3.51689695]
[1724376912149,0.05110941,144.05,144.03,0.04619695]
[1724376912747,0.05110941,144.05,144.03,3.51679695]
[1724376913253,0.05110941,144.05,144.03,10.95679695]
[1724376914052,0.05110941,144.05,144.04,3.4705]
[1724376916061,0.05110941,144.05,144.04,10.9105]
[1724376917552,0.05110941,144.05,144.04,3.4705]
[1724376922555,7.44,144.11,144.05,3.4701]
[1724376922761,3.4691,144.1,144.05,3.4701]
[1724376923557,0.04396232,144.09,144.06,0.04795415]
[1724376925465,0.04396232,144.09,144.07,3.4697]
[1724376925765,0.04396232,144.09,144.06,7.48795415]
[1724376926362,0.04396232,144.09,144.07,3.4697]
[1724376927769,0.04396232,144.09,144.08,3.4696]
[1724376930763,0.04396232,144.09,144.06,0.04795415]
[1724376931464,7.48396232,144.09,144.06,3.51795415]
[1724376931665,7.48396232,144.09,144.06,0.04795415]
[1724376934473,3.4696,144.08,144.06,0.04795415]
[1724376934774,7.44,144.08,144.06,0.04795415]
[1724376934972,10.9097,144.08,144.06,0.04795415]
[1724376936175,3.4698,144.07,144.06,0.04795415]
[1724376938371,10.9098,144.07,144.06,0.04795415]
[1724376939966,7.44,144.07,144.01,3.4712]
[1724376940174,7.44,144.05,144.01,3.4712]
[1724376940572,10.9104,144.05,144.01,3.4712]
[1724376940967,0.04408703,144.04,144.02,0.0508214]
[1724376944382,0.04408703,144.04,144.02,10.9617214]
[1724376948886,0.04408703,144.04,144.03,3.4708]
[1724376949082,0.04408703,144.04,144.03,10.9108]
[1724376950588,0.04408703,144.04,144.03,3.4708]
[1724376952786,6.9337,144.2,144.04,3.4703]
[1724376952980,1.3213,144.16,144.06,7.44]
[1724376953177,3.469,144.11,144.06,7.44]
[1724376953378,3.469,144.11,144.08,7.44]
[1724376953777,0.04392967,144.11,144.09,10.9091]
[1724376953985,0.04392967,144.11,144.09,7.44]
[1724376954383,0.04392967,144.11,144.09,8.7436]
[1724376954984,3.4677,144.16,144.09,38.5036]
[1724376955283,74.68404881,144.19,144.13,7.44]
[1724376955490,3.4675,144.17,144.13,7.44]
[1724376955896,0.05322182,144.16,144.14,0.04682142]
[1724376959693,3.52092182,144.16,144.14,0.04682142]
[1724376959889,0.05322182,144.16,144.14,0.04682142]
[1724376960691,7.44,144.15,144.14,0.04682142]
[1724376961088,10.9079,144.15,144.14,0.04682142]
[1724376961889,7.44,144.15,144.14,0.04682142]
[1724376962689,10.9079,144.15,144.14,0.04682142]
[1724376965792,10.96092182,144.16,144.14,0.04682142]
[1724376965992,3.52092182,144.16,144.14,0.04682142]
[1724376966393,10.96092182,144.16,144.14,0.04682142]
[1724376966787,7.49322182,144.16,144.14,0.04682142]
[1724376967888,10.96092182,144.16,144.14,0.04682142]
[1724376968089,7.49322182,144.16,144.14,0.04682142]
[1724376968596,3.4679,144.15,144.14,0.04682142]
[1724376970901,10.96102182,144.16,144.14,0.04682142]
[1724376971997,7.49322182,144.16,144.14,0.04682142]
[1724376972391,3.4679,144.15,144.14,0.04682142]
[1724376972994,10.9079,144.15,144.14,0.04682142]
[1724376974601,3.4683,144.14,144.1,3.4689]
[1724376974802,7.44,144.13,144.1,3.4689]
[1724376975802,7.44,144.13,144.1,3.5160988]
[1724376975803,7.48820519,144.13,144.1,3.5160988]
[1724376975997,10.95660519,144.13,144.1,0.0471988]
[1724376977001,3.4686,144.12,144.1,0.0471988]
[1724376977804,10.95660519,144.13,144.1,0.0471988]
[1724376977997,3.51660519,144.13,144.1,0.0471988]
[1724376979905,0.04820519,144.13,144.1,3.5162988]
[1724376981104,3.51660519,144.13,144.1,0.0471988]
[1724376986098,0.04820519,144.13,144.1,3.5162988]
[1724376986300,0.04820519,144.13,144.1,0.0471988]
[1724376987306,3.51660519,144.13,144.1,0.0471988]
[1724376988700,0.04820519,144.13,144.1,0.0471988]
[1724376991413,3.51670519,144.13,144.1,0.0471988]
[1724377002516,0.04820519,144.13,144.1,0.0471988]
[1724377002722,0.04820519,144.13,144.1,3.5162988]
[1724377003118,3.51660519,144.13,144.1,0.0471988]
[1724377003812,0.04820519,144.13,144.1,0.0471988]
[1724377007730,0.04820519,144.13,144.1,3.5162988]
[1724377010127,0.04820519,144.13,144.12,7.44]
[1724377011028,3.4675,144.17,144.12,10.9084]
[1724377012134,0.04514415,144.16,144.13,0.04383265]
[1724377012426,0.04514415,144.16,144.13,3.51213265]
[1724377013730,0.04514415,144.16,144.13,0.04383265]
[1724377016137,3.51274415,144.16,144.13,0.04383265]
[1724377018031,0.04514415,144.16,144.13,3.51203265]
[1724377020736,0.04514415,144.16,144.13,10.95203265]
[1724377021533,0.04514415,144.16,144.15,7.44]
[1724377022442,0.04514415,144.16,144.14,1.2723]
[1724377022640,0.04514415,144.16,144.14,8.7123]
[1724377023042,0.04514415,144.16,144.14,12.1803]
[1724377025238,0.04514415,144.16,144.14,4.7403]
[1724377025737,0.04514415,144.16,144.13,3.51203265]
[1724377026542,0.04514415,144.16,144.14,3.4681]
[1724377032943,0.04514415,144.16,144.13,3.51203265]
[1724377036644,0.04514415,144.16,144.14,3.468]
[1724377038044,0.04514415,144.16,144.14,10.908]
[1724377044645,0.04514415,144.16,144.15,10.9079]
[1724377045255,3.4667,144.2,144.16,3.4676]
[1724377045848,3.4667,144.2,144.16,10.9076]
[1724377046251,3.4665,144.21,144.17,10.95829765]
[1724377046446,0.04655706,144.19,144.18,0.0441804]
[1724377046656,0.05143616,144.2,144.18,0.0441804]
[1724377047761,0.05143616,144.2,144.18,3.5112804]
[1724377050954,0.05143616,144.2,144.19,3.4669]
[1724377051452,0.05143616,144.2,144.19,10.9069]
[1724377054563,27.74,144.25,144.2,3.4667]
[1724377055655,0.04762163,144.24,144.21,0.04511848]
[1724377055861,0.04762163,144.24,144.21,3.51151848]
[1724377057955,0.04762163,144.24,144.21,0.04511848]
[1724377060059,10.95342163,144.24,144.21,0.04511848]
[1724377063763,3.51342163,144.24,144.21,0.04511848]
[1724377066867,3.466,144.23,144.21,0.04511848]
[1724377067165,0.04762163,144.24,144.21,0.04511848]
[1724377067861,3.51342163,144.24,144.21,0.04511848]
[1724377078365,3.51342163,144.24,144.21,3.51151848]
[1724377078772,0.04762163,144.24,144.21,3.51151848]
[1724377079370,3.51332163,144.24,144.21,3.51151848]
[1724377080178,3.51332163,144.24,144.21,0.04511848]
[1724377080675,3.466,144.23,144.21,0.04511848]
[1724377080872,7.44,144.22,144.21,0.04511848]
[1724377081269,10.9062,144.22,144.21,0.04511848]
[1724377081664,7.44,144.19,144.16,3.4675]
[1724377082772,7.49297432,144.19,144.16,0.04525496]
[1724377084169,0.05297432,144.19,144.16,0.04525496]
[1724377085768,3.51987432,144.19,144.16,0.04525496]
[1724377088375,7.49297432,144.19,144.16,0.04525496]
[1724377088572,7.44,144.17,144.16,0.04525496]
[1724377088775,7.49297432,144.19,144.16,0.04525496]
[1724377088972,3.4673,144.18,144.16,0.04525496]
[1724377090877,7.49297432,144.19,144.16,0.04525496]
[1724377091592,0.05297432,144.19,144.16,0.04525496]
[1724377091783,0.05297432,144.19,144.16,7.48525496]
[1724377093382,0.05297432,144.19,144.16,0.04525496]
[1724377093383,3.51997432,144.19,144.16,0.04525496]
[1724377095081,0.05297432,144.19,144.16,0.04525496]
[1724377098292,0.05297432,144.19,144.16,3.51275496]
[1724377101993,0.05297432,144.19,144.16,0.04525496]
[1724377103495,3.51997432,144.19,144.16,0.04525496]
[1724377103687,0.05297432,144.19,144.16,0.04525496]
[1724377103992,3.4672,144.18,144.16,0.04525496]
[1724377104987,3.4674,144.17,144.16,0.04525496]
[1724377105989,3.4672,144.18,144.16,0.04525496]
[1724377107891,3.4674,144.17,144.16,0.04525496]
[1724377108888,10.9074,144.17,144.16,0.04525496]
[1724377109086,3.4679,144.15,144.11,1.292]
[1724377109291,10.9079,144.15,144.11,1.292]
[1724377110087,0.04554662,144.14,144.11,4.7607]
[1724377110288,0.04554662,144.14,144.12,0.05239982]
[1724377110799,0.04554662,144.14,144.12,7.49239982]
[1724377111998,0.04554662,144.14,144.13,7.44]
[1724377112397,0.04554662,144.14,144.13,10.9083]
[1724377119918,0.04554662,144.14,144.13,3.4683]
[1724377122117,0.04554662,144.14,144.12,3.52089982]
[1724377122421,0.04554662,144.14,144.12,0.05239982]
[1724377132817,3.4683,144.13,144.12,0.05239982]
[1724377133220,3.51374662,144.14,144.12,0.05239982]
[1724377134824,3.4683,144.13,144.12,0.05239982]
[1724377140435,3.51374662,144.14,144.12,0.05239982]
[1724377147733,0.04554662,144.14,144.12,0.05239982]
[1724377147938,0.04554662,144.14,144.12,7.49239982]
[1724377148237,0.04554662,144.14,144.12,10.96079982]
[1724377149026,0.04554662,144.14,144.13,3.4683]
[1724377149229,0.04554662,144.14,144.13,10.9083]
[1724377149428,35.18,144.2,144.13,8.8321]
[1724377150138,27.74,144.2,144.13,8.8321]
[1724377150437,3.51621135,144.18,144.15,0.04918092]
[1724377153536,0.04891135,144.18,144.15,3.51688092]
[1724377155537,0.04891135,144.18,144.15,7.48918092]
[1724377156237,0.04891135,144.18,144.16,3.4675]
[1724377156941,0.04891135,144.18,144.17,3.4674]
[1724377163654,3.4663,144.22,144.18,3.4671]
[1724377163838,3.4663,144.22,144.18,10.9071]
[1724377164645,0.04817578,144.21,144.19,3.51814511]
[1724377165344,0.04817578,144.21,144.2,3.4667]
[1724377166250,0.04817578,144.21,144.19,10.95804511]
[1724377167238,0.04817578,144.21,144.19,0.05124511]
[1724377181951,3.51467578,144.21,144.19,0.05124511]
[1724377182155,0.04817578,144.21,144.19,0.05124511]
[1724377183255,3.51467578,144.21,144.19,0.05124511]
[1724377184357,3.4667,144.2,144.19,0.05124511]
[1724377184766,0.04817578,144.21,144.19,0.05124511]
[1724377185362,7.44,144.2,144.19,0.05124511]
[1724377186058,10.9067,144.2,144.19,0.05124511]
[1724377187059,3.4667,144.2,144.19,0.05124511]
[1724377189868,0.04817578,144.21,144.19,0.05124511]
[1724377189869,3.51467578,144.21,144.19,0.05124511]
[1724377190860,3.4667,144.2,144.19,0.05124511]
[1724377202568,0.04817578,144.21,144.19,0.05124511]
[1724377202974,0.04817578,144.21,144.19,3.51794511]
[1724377205577,3.51467578,144.21,144.19,0.05124511]
[1724377212182,3.4667,144.2,144.19,0.05124511]
[1724377215877,0.04817578,144.21,144.19,0.05124511]
[1724377216076,0.04817578,144.21,144.2,7.44]
[1724377216780,0.04817578,144.21,144.2,10.9067]
[1724377217285,0.04817578,144.21,144.2,12.1863]
[1724377218781,11.02652782,144.31,144.2,8.7196]
[1724377219085,7.44,144.31,144.24,7.44]
[1724377219481,3.4647,144.29,144.24,10.9055]
[1724377219990,0.04442585,144.28,144.25,3.51853068]
[1724377220386,0.04442585,144.28,144.25,0.05313068]
[1724377220686,3.50922585,144.28,144.25,0.05313068]
[1724377224282,3.465,144.27,144.25,0.05313068]
[1724377235393,0.04442585,144.28,144.26,7.44]
[1724377235687,0.04442585,144.28,144.27,7.44]
[1724377236289,0.04442585,144.28,144.27,10.905]
[1724377239188,27.72,144.32,144.28,3.4647]
[1724377239385,27.72,144.32,144.3,7.44]
[1724377239587,7.44,144.36,144.3,7.44]
[1724377239890,3.4638,144.33,144.3,7.44]
[1724377240091,3.4638,144.33,144.28,3.4647]
[1724377240092,7.44,144.35,144.29,7.44]
[1724377240385,0.05222904,144.33,144.31,0.04486244]
[1724377240591,7.49222904,144.33,144.31,0.04486244]
[1724377240991,3.4639,144.32,144.31,0.04486244]
[1724377247487,3.51582904,144.33,144.31,0.04486244]
[1724377250893,3.4638,144.32,144.31,0.04486244]
[1724377258705,10.9038,144.32,144.31,0.04486244]
[1724377260399,3.4638,144.32,144.31,0.04486244]
[1724377262108,0.05222904,144.33,144.31,0.04486244]
[1724377262498,0.05222904,144.33,144.31,3.50886244]
[1724377264408,3.51582904,144.33,144.31,3.50886244]
[1724377266415,3.51582904,144.33,144.31,0.04486244]
[1724377266708,0.05222904,144.33,144.31,7.48486244]
[1724377266910,0.05222904,144.33,144.31,10.94876244]
[1724377267108,0.05222904,144.33,144.31,7.48486244]
[1724377268113,0.05222904,144.33,144.32,3.4638]
[1724377269110,0.05222904,144.33,144.32,10.9038]
[1724377270113,0.05222904,144.33,144.32,12.1943]
[1724377271516,3.4628,144.36,144.32,12.1943]
[1724377271711,10.87404143,144.39,144.32,12.1943]
[1724377271712,3.4627,144.37,144.35,7.44]
[1724377272308,0.04530648,144.37,144.35,7.48724418]
[1724377272512,0.04530648,144.37,144.36,7.44]
[1724377273402,27.72,144.41,144.37,3.4625]
[1724377274313,27.72,144.41,144.36,7.44]
[1724377274314,3.4853206,144.4,144.36,10.9028]
[1724377276609,3.4622,144.39,144.36,7.44]
[1724377277203,3.4621,144.39,144.35,3.51014418]
[1724377277409,3.4621,144.39,144.35,10.95014418]
[1724377278615,3.4624,144.38,144.35,7.48724418]
[1724377279418,3.4621,144.39,144.35,10.95014418]
[1724377279610,3.4621,144.39,144.36,7.44]
[1724377280814,3.4624,144.38,144.36,7.44]
[1724377283618,3.4623,144.39,144.36,7.44]
[1724377293323,3.4623,144.39,144.36,10.9028]
[1724377293818,3.4623,144.39,144.36,7.44]
[1724377295925,3.4623,144.39,144.36,10.9027]
[1724377297331,3.4623,144.39,144.36,7.44]
[1724377302634,3.4623,144.39,144.36,10.9028]
[1724377303535,3.4853206,144.4,144.38,7.44]
[1724377309544,0.0233206,144.4,144.38,10.9022]
[1724377309744,0.0233206,144.4,144.39,7.44]
[1724377311240,0.0233206,144.4,144.39,10.9021]
[1724377312849,0.0233206,144.4,144.39,7.44]
[1724377315445,0.0233206,144.4,144.38,3.51529855]
[1724377315647,0.0233206,144.4,144.38,10.95529855]
[1724377315849,0.0233206,144.4,144.38,0.05309855]
[1724377317949,0.0233206,144.4,144.38,7.49309855]
[1724377318349,0.0233206,144.4,144.38,10.95519855]
[1724377320250,0.0233206,144.4,144.38,7.49309855]
[1724377321945,0.0233206,144.4,144.39,7.44]
[1724377324152,0.0233206,144.4,144.39,10.9021]
[1724377324852,69.82226443,144.47,144.39,7.44]
[1724377324853,68.46786443,144.47,144.39,7.44]
[1724377325162,68.46786443,144.47,144.42,7.44]
[1724377325948,3.4604,144.47,144.43,10.94769612]
[1724377326551,3.4604,144.47,144.44,3.4609]
[1724377327249,3.4604,144.47,144.45,7.44]
[1724377327753,3.46,144.48,144.45,7.44]
[1724377327956,3.46,144.48,144.45,7.48476419]
[1724377328876,7.44,144.5,144.45,7.48476419]
[1724377329048,27.68,144.51,144.46,7.44]
[1724377329248,3.4601,144.48,144.45,7.48476419]
[1724377333452,3.4603,144.47,144.45,7.48476419]
[1724377335258,27.68,144.51,144.46,7.44]
[1724377335757,3.4595,144.5,144.46,3.4602]
[1724377335954,3.4595,144.5,144.46,10.9002]
[1724377336852,3.4595,144.5,144.47,3.4602]
[1724377337355,3.4597,144.49,144.46,7.44]
[1724377337559,3.4597,144.49,144.46,3.4603]
[1724377339852,3.4597,144.49,144.46,10.9003]
[1724377345766,3.4597,144.49,144.47,7.44]
[1724377346071,3.4596,144.5,144.47,10.9002]
[1724377346261,3.4596,144.5,144.47,10.94842325]
[1724377346667,3.4596,144.5,144.48,3.4599]
[1724377346870,3.4593,144.51,144.48,3.4599]
[1724377347384,3.4595,144.5,144.48,3.4599]
[1724377350777,3.4595,144.5,144.47,10.94832325]
[1724377352075,3.4598,144.49,144.47,7.48822325]
[1724377352275,3.4598,144.49,144.47,0.04822325]
[1724377352574,7.44,144.52,144.47,0.04822325]
[1724377353171,66.99041644,144.53,144.47,0.04822325]
[1724377353368,74.43041644,144.53,144.47,0.04822325]
[1724377353572,3.4597,144.5,144.47,3.50832325]
[1724377353764,74.43041644,144.53,144.47,0.04822325]
[1724377354771,3.4598,144.49,144.47,0.04822325]
[1724377354966,7.44,144.52,144.47,0.04822325]
[1724377357475,3.4599,144.49,144.47,0.04822325]
[1724377357978,3.4599,144.48,144.47,0.04822325]
[1724377361781,66.99041644,144.53,144.47,0.04822325]
[1724377361782,3.4598,144.49,144.47,0.04822325]
[1724377362578,3.4598,144.49,144.47,7.48822325]
[1724377363179,66.99041644,144.53,144.48,10.8999]
[1724377363880,3.4594,144.51,144.48,10.8999]
[1724377366179,66.99041644,144.53,144.47,1.39102325]
[1724377366180,3.4598,144.49,144.47,1.39102325]
[1724377366387,66.99041644,144.53,144.47,1.39102325]
[1724377366575,66.99041644,144.53,144.48,7.44]
[1724377367985,3.4595,144.5,144.48,10.8999]
[1724377368583,3.4593,144.51,144.49,3.4597]
[1724377368784,3.4593,144.51,144.49,10.94715414]
[1724377368991,3.4593,144.51,144.49,7.48745414]
[1724377369292,3.4593,144.51,144.49,0.04745414]
[1724377370694,3.4593,144.51,144.49,7.48745414]
[1724377372397,3.4593,144.51,144.5,7.44]
[1724377372892,3.4592,144.52,144.49,0.04745414]
[1724377373094,10.95244615,144.55,144.49,0.04745414]
[1724377374303,3.4594,144.51,144.49,0.04745414]
[1724377375193,3.4595,144.5,144.49,0.04745414]
[1724377376395,3.4593,144.51,144.49,0.04745414]
[1724377378498,3.4593,144.51,144.49,7.48745414]
[1724377379803,3.4595,144.5,144.49,0.04745414]
[1724377380103,3.4595,144.5,144.46,2.6989]
[1724377380104,7.44,144.52,144.46,7.44]
[1724377380605,7.44,144.52,144.46,10.9003]
[1724377380807,69.03561654,144.56,144.46,10.9003]
[1724377380808,7.44,144.53,144.47,7.44]
[1724377381103,0.04745414,144.51,144.49,0.04933984]
[1724377382193,3.4595,144.5,144.49,0.04933984]
[1724377384307,8.54587179,144.5,144.35,2.6991]
[1724377384508,7.44,144.47,144.4,7.44]
[1724377385403,0.04655266,144.45,144.42,0.04497565]
[1724377385607,3.4609,144.44,144.42,0.04497565]
[1724377385804,0.04655266,144.45,144.42,7.48497565]
[1724377386206,3.4611,144.44,144.42,7.48497565]
[1724377386504,0.04655266,144.45,144.43,7.44]
[1724377387406,3.50725266,144.45,144.43,7.44]
[1724377389907,3.4609,144.44,144.43,7.44]
[1724377393623,0.04655266,144.45,144.43,7.44]
[1724377395427,3.4609,144.44,144.43,7.44]
[1724377398824,3.4609,144.44,144.42,0.04497565]
[1724377399117,3.4609,144.44,144.42,7.48497565]
[1724377402932,3.50735266,144.45,144.43,7.44]
[1724377417431,0.04655266,144.45,144.43,7.44]
[1724377417937,0.04655266,144.45,144.43,10.9011]
[1724377422040,0.04655266,144.45,144.43,3.4611]
[1724377422238,0.04655266,144.45,144.44,7.44]
[1724377427545,0.04655266,144.45,144.44,10.9009]
[1724377429839,0.04655266,144.45,144.44,7.44]
[1724377433752,0.04655266,144.45,144.44,10.9009]
[1724377440456,0.04655266,144.45,144.44,3.4609]
[1724377440650,0.04655266,144.45,144.44,10.9009]
[1724377443360,0.04655266,144.45,144.44,7.44]
[1724377451464,3.50725266,144.45,144.43,7.44]
[1724377453468,0.04655266,144.45,144.44,10.9009]
[1724377454464,0.04655266,144.45,144.44,14.94765403]
[1724377455279,0.04655266,144.45,144.44,16.33227638]
[1724377455871,0.04655266,144.45,144.44,14.94765403]
[1724377456373,0.04655266,144.45,144.44,16.33228326]
[1724377457673,0.04655266,144.45,144.44,10.9009]
[1724377457873,0.04655266,144.45,144.44,16.33263576]
[1724377458069,0.04655266,144.45,144.44,10.9009]
[1724377458273,0.04655266,144.45,144.44,16.33263576]
[1724377458465,0.04655266,144.45,144.44,10.9009]
[1724377458670,0.04655266,144.45,144.44,16.33263576]
[1724377461172,0.04655266,144.45,144.44,16.33255944]
[1724377464276,0.04655266,144.45,144.44,10.9009]
[1724377464473,0.04655266,144.45,144.44,12.28553059]
[1724377464665,0.04655266,144.45,144.44,16.33264224]
[1724377465073,0.04655266,144.45,144.44,12.87174224]
[1724377466374,0.04655266,144.45,144.44,16.33264224]
[1724377467577,0.04655266,144.45,144.44,8.89263431]
[1724377467781,0.04655266,144.45,144.44,12.87173431]
[1724377467977,0.04655266,144.45,144.44,7.44]
[1724377468280,0.04655266,144.45,144.44,11.48708192]
[1724377468475,0.04655266,144.45,144.44,12.87170458]
[1724377469071,0.04655266,144.45,144.44,12.87173274]
[1724377469275,0.04655266,144.45,144.44,16.33263274]
[1724377470879,0.04655266,144.45,144.44,12.28552266]
[1724377471081,0.04655266,144.45,144.44,16.33265971]
[1724377472384,0.04655266,144.45,144.44,10.9009]
[1724377472681,0.04655266,144.45,144.44,16.33267442]
[1724377474382,0.04655266,144.45,144.44,16.33266722]
[1724377475480,96.71561654,144.56,144.44,42.63176722]
[1724377475684,96.71561654,144.56,144.51,7.44]
[1724377475878,3.41064266,144.55,144.51,7.44]
[1724377476073,3.4591,144.52,144.51,7.44]
[1724377478383,3.50904132,144.53,144.51,7.44]
[1724377479381,0.05024132,144.53,144.51,7.44]
[1724377479580,0.05024132,144.53,144.52,3.459]
[1724377480580,3.52851566,144.6,144.55,7.44]
[1724377481382,3.52851566,144.6,144.56,0.04634499]
[1724377481988,7.44,144.61,144.56,0.04634499]
[1724377482383,3.458,144.57,144.56,0.04634499]
[1724377517506,10.898,144.57,144.56,0.04634499]
[1724377517909,3.458,144.57,144.56,0.04634499]
[1724377535821,10.898,144.57,144.56,0.04634499]
[1724377537028,3.4591,144.52,144.49,11.471]
[1724377537929,3.50544499,144.52,144.49,11.51733603]
[1724377538428,3.50544499,144.52,144.5,7.44]
[1724377538729,0.04634499,144.52,144.5,7.44]
[1724377539225,0.04634499,144.52,144.51,7.44]
[1724377542927,0.04634499,144.52,144.5,3.4593]
[1724377543124,0.04634499,144.52,144.51,7.44]
[1724377544223,0.04634499,144.52,144.51,12.86457951]
[1724377545622,0.04634499,144.52,144.51,8.82386102]
[1724377545922,0.04634499,144.52,144.51,11.48077219]
[1724377546128,0.04634499,144.52,144.51,8.82386102]
[1724377546328,0.04634499,144.52,144.51,12.86459923]
[1724377548934,0.04634499,144.52,144.51,11.48073821]
[1724377549136,0.04634499,144.52,144.51,12.86459173]
[1724377549432,0.04634499,144.52,144.51,16.32379173]
[1724377552129,0.04634499,144.52,144.51,14.93993821]
[1724377552327,0.04634499,144.52,144.51,16.32443883]
[1724377554226,63.43475277,144.58,144.51,12.86523883]
[1724377554434,63.43475277,144.58,144.52,12.86523883]
[1724377554634,63.43475277,144.58,144.53,4.04139461]
[1724377554832,63.43475277,144.58,144.52,7.44]
[1724377555031,63.43475277,144.58,144.53,4.04158066]
[1724377555232,63.43475277,144.58,144.54,0.04849699]
[1724377558441,3.4582,144.56,144.54,0.04849699]
[1724377559538,63.43475277,144.58,144.54,0.04849699]
[1724377559539,3.4583,144.55,144.54,0.04849699]
[1724377560337,3.4583,144.55,144.54,4.09003163]
[1724377560740,10.8983,144.55,144.54,0.04849699]
[1724377561334,3.4592,144.51,144.47,7.44]
[1724377561542,3.4592,144.51,144.4,46.59067538]
[1724377561543,3.4592,144.51,144.48,5.42647112]